bitfinex/quotes_ETHUSD_20250721
["timestamp","ask_amount","ask_price","bid_price","bid_amount"]
[1753119562377,2.65310767,3769.2,3768.9,0.132]
[1753119562582,0.4405,3769.6,3768.4,0.4652]
[1753119562583,4.25,3769.1,3769.0,0.4652]
[1753119562877,0.002,3769.2,3769.1,0.132]
[1753119563084,4.252,3769.2,3769.1,0.132]
[1753119563613,0.002,3769.2,3769.1,0.132]
[1753119563813,4.252,3769.2,3769.1,0.132]
[1753119564188,6.90508288,3769.2,3769.1,0.132]
[1753119564518,4.252,3769.2,3769.1,0.132]
[1753119565515,5.5953,3769.2,3767.8,1.2567]
[1753119565731,2.65329406,3768.9,3768.8,0.132]
[1753119566025,6.90229406,3768.9,3768.8,0.132]
[1753119566194,2.65329406,3768.9,3768.8,0.132]
[1753119566399,6.90229406,3768.9,3768.8,0.132]
[1753119567225,2.65323448,3769.0,3768.8,0.132]
[1753119567527,4.249,3768.9,3768.8,0.132]
[1753119567722,6.90229406,3768.9,3768.8,0.132]
[1753119568826,4.249,3768.9,3768.8,0.132]
[1753119569122,6.90229406,3768.9,3768.8,0.132]
[1753119572022,2.65329406,3768.9,3768.8,0.132]
[1753119572231,4.249,3768.9,3768.8,0.132]
[1753119572388,6.90229406,3768.9,3768.8,0.132]
[1753119572588,4.249,3768.9,3768.8,0.132]
[1753119572789,6.90229406,3768.9,3768.8,0.132]
[1753119573309,4.249,3768.9,3768.8,0.132]
[1753119573617,6.90229406,3768.9,3768.8,0.132]
[1753119573815,2.65329406,3768.9,3768.8,0.132]
[1753119574018,6.90229406,3768.9,3768.8,0.132]
[1753119575627,2.65510239,3769.2,3768.8,0.132]
[1753119575928,6.90215589,3769.1,3768.8,0.5972]
[1753119576154,0.002,3769.2,3768.8,0.132]
[1753119576453,0.002,3769.2,3769.0,0.132]
[1753119576698,4.249,3769.1,3769.0,0.132]
[1753119576855,6.90215327,3769.1,3769.0,0.132]
[1753119577205,4.249,3769.1,3769.0,0.132]
[1753119577432,6.90215327,3769.1,3769.0,0.132]
[1753119579354,6.90215327,3769.1,3767.7,2.65410882]
[1753119579355,2.65413912,3767.7,3767.6,0.001]
[1753119579554,2.65413912,3767.7,3767.6,0.133]
[1753119579555,4.248,3767.7,3767.6,0.133]
[1753119579711,0.7688,3768.0,3767.6,0.133]
[1753119580068,3.20413912,3767.7,3767.6,0.001]
[1753119580663,8.18519631,3767.7,3767.6,0.001]
[1753119580809,8.62569631,3767.7,3767.6,0.001]
[1753119581522,8.13469631,3767.7,3767.6,0.001]
[1753119581724,12.58103068,3767.7,3767.6,0.001]
[1753119584723,8.33203068,3767.7,3767.6,0.001]
[1753119584921,12.58103068,3767.7,3767.6,0.001]
[1753119585566,8.33203068,3767.7,3767.6,0.001]
[1753119585853,12.58103068,3767.7,3767.6,0.001]
[1753119586160,8.33203068,3767.7,3767.6,0.001]
[1753119586359,12.58103068,3767.7,3767.6,0.001]
[1753119589164,8.33203068,3767.7,3767.6,0.001]
[1753119589324,6.60847349,3767.7,3767.6,0.001]
[1753119589647,10.85747349,3767.7,3767.6,0.001]
[1753119589845,10.10047349,3767.7,3767.6,0.001]
[1753119590222,6.40147349,3767.7,3767.6,0.001]
[1753119590422,2.65330773,3768.9,3767.6,0.001]
[1753119590423,6.37,3768.7,3767.6,0.4722]
[1753119590657,4.249,3768.3,3767.8,0.7906]
[1753119590858,3.0,3768.2,3767.8,1.65350752]
[1753119591028,4.249,3768.1,3767.9,0.4712]
[1753119591360,4.249,3768.0,3767.9,0.4712]
[1753119592362,4.249,3768.0,3767.8,0.7906]
[1753119592530,4.249,3768.0,3767.8,3.44466836]
[1753119592736,4.249,3768.0,3767.8,1.2618]
[1753119593130,4.249,3768.0,3767.9,0.132]
[1753119593471,4.249,3768.0,3767.9,0.6032]
[1753119594122,3.20413912,3767.7,3767.6,0.001]
[1753119594321,10.58513912,3767.7,3767.6,0.001]
[1753119594558,11.02633912,3767.7,3767.6,0.001]
[1753119594722,10.58513912,3767.7,3767.6,0.001]
[1753119595437,6.33613912,3767.7,3767.6,0.001]
[1753119595639,10.58513912,3767.7,3767.6,0.001]
[1753119597161,12.51886863,3767.7,3767.6,0.001]
[1753119598028,8.26986863,3767.7,3767.6,0.001]
[1753119598240,6.33613912,3767.7,3767.6,0.001]
[1753119598445,10.58513912,3767.7,3767.6,0.001]
[1753119598963,6.33613912,3767.7,3767.6,0.001]
[1753119599129,10.58513912,3767.7,3767.6,0.001]
[1753119599863,11.02633912,3767.7,3767.6,0.001]
[1753119600060,8.26986863,3767.7,3767.6,0.001]
[1753119600221,12.51886863,3767.7,3767.6,0.001]
[1753119601027,13.29976863,3767.7,3767.6,0.001]
[1753119601627,13.29976863,3767.7,3767.6,1e-08]
[1753119602743,16.08676863,3767.7,3767.6,1e-08]
[1753119603369,9.05076863,3767.7,3767.6,1e-08]
[1753119603546,13.29876863,3767.7,3767.6,1e-08]
[1753119605728,16.08576863,3767.7,3767.6,1e-08]
[1753119606369,3.20449139,3767.2,3767.1,1e-08]
[1753119606568,26.44336279,3767.2,3767.1,1e-08]
[1753119606795,3.20498473,3766.5,3766.4,0.001]
[1753119606980,28.43885613,3766.5,3766.4,0.001]
[1753119607180,33.25505613,3766.5,3766.4,1e-08]
[1753119607358,35.75599937,3766.5,3766.4,1e-08]
[1753119608459,31.50799937,3766.5,3766.4,1e-08]
[1753119608662,16.34922797,3766.5,3766.4,1e-08]
[1753119608862,15.90802797,3766.5,3766.4,1e-08]
[1753119609173,17.65508473,3766.5,3766.4,1e-08]
[1753119609493,10.7521,3766.5,3766.4,1e-08]
[1753119609694,6.37,3766.5,3766.4,1e-08]
[1753119609855,10.75,3766.5,3766.4,0.47120001]
[1753119610056,6.37,3766.5,3766.4,3.12625523]
[1753119610285,0.132,3766.9,3766.4,3.78198335]
[1753119610481,4.248,3766.8,3766.4,1.12692959]
[1753119610694,0.132,3766.9,3766.8,2.65477328]
[1753119610900,6.371,3767.4,3766.9,2.6547028]
[1753119611100,4.38,3767.3,3767.2,2.65449139]
[1753119611258,6.371,3767.4,3767.3,2.65442093]
[1753119611464,10.619,3767.4,3767.3,3.45832093]
[1753119611671,10.619,3767.4,3767.3,4.08280512]
[1753119611672,6.371,3767.4,3767.3,4.08280512]
[1753119611882,10.619,3767.4,3767.3,4.55400512]
[1753119612092,0.132,3768.2,3767.3,3.75004842]
[1753119612291,6.371,3768.8,3767.6,0.8302]
[1753119612494,6.371,3768.8,3768.6,0.8302]
[1753119612705,6.371,3768.8,3768.7,0.4712]
[1753119613020,10.619,3768.8,3768.6,0.9622]
[1753119613178,10.619,3768.8,3768.3,0.4712]
[1753119613179,10.619,3768.8,3768.3,0.6032]
[1753119613369,11.95962785,3768.8,3768.2,0.8302]
[1753119613570,11.95962785,3768.8,3768.1,2.65385685]
[1753119613571,0.55,3768.4,3768.1,2.65385685]
[1753119613808,4.248,3768.3,3768.2,0.4712]
[1753119614316,4.248,3768.3,3767.9,0.132]
[1753119614317,0.55,3768.2,3767.9,0.132]
[1753119614499,4.248,3768.1,3768.0,0.4712]
[1753119614717,0.55,3768.2,3767.9,0.132]
[1753119615012,2.65372968,3768.3,3767.8,0.8302]
[1753119615013,4.247,3768.1,3767.8,0.8302]
[1753119615210,4.247,3768.1,3767.8,1.3014]
[1753119615713,4.247,3768.1,3767.9,0.4712]
[1753119616279,4.247,3768.1,3767.8,0.8302]
[1753119616579,4.247,3768.1,3767.8,1.285]
[1753119617022,4.247,3768.1,3767.9,3.10879301]
[1753119617229,0.55,3768.6,3768.0,2.65392678]
[1753119617424,6.371,3768.8,3768.6,0.7624]
[1753119617628,6.371,3768.8,3768.7,2.65343487]
[1753119617840,6.371,3768.8,3768.7,0.4548]
[1753119618144,10.617,3768.8,3768.6,0.7624]
[1753119618302,10.617,3768.8,3768.7,3.10823487]
[1753119618303,6.371,3768.8,3768.7,3.10823487]
[1753119618485,10.617,3768.8,3768.7,0.4548]
[1753119618682,25.117,3768.8,3768.7,0.4548]
[1753119619925,25.116,3768.8,3768.7,0.4548]
[1753119620436,20.871,3768.8,3768.6,0.132]
[1753119620857,0.002,3769.0,3768.7,2.65343487]
[1753119621141,4.245,3768.9,3768.6,0.132]
[1753119621341,4.245,3768.9,3766.9,13.43840801]
[1753119621342,17.57806806,3768.8,3767.8,2.65400472]
[1753119621504,4.245,3768.7,3768.4,0.132]
[1753119622215,14.5,3768.6,3768.4,0.132]
[1753119622416,4.245,3768.5,3768.4,0.132]
[1753119622828,8.24937569,3768.5,3768.4,0.132]
[1753119623001,3.682,3768.4,3767.4,0.132]
[1753119623208,2.65436254,3767.4,3766.7,3.10963557]
[1753119623420,21.39943698,3767.3,3767.0,0.132]
[1753119623630,18.745,3767.3,3767.0,0.132]
[1753119623797,21.39942739,3767.3,3767.0,0.132]
[1753119624004,18.745,3767.3,3767.0,0.132]
[1753119624229,2.65456186,3767.1,3767.0,0.132]
[1753119624641,6.89856186,3767.1,3767.0,0.132]
[1753119624818,4.244,3767.1,3767.0,0.132]
[1753119625352,14.5,3767.3,3767.0,0.5868]
[1753119625520,4.244,3767.2,3767.0,0.5868]
[1753119625710,4.244,3767.2,3767.1,0.4548]
[1753119626440,4.244,3767.2,3767.0,0.132]
[1753119627039,4.244,3767.2,3767.0,0.5868]
[1753119627738,4.244,3767.2,3767.0,0.132]
[1753119628530,4.244,3767.1,3767.0,0.132]
[1753119629115,4.244,3767.1,3767.0,0.5868]
[1753119629320,18.744,3767.1,3767.0,0.5868]
[1753119630341,18.744,3767.1,3767.0,3.24143233]
[1753119630506,14.5,3767.1,3767.0,3.24143233]
[1753119630707,18.744,3767.1,3767.0,3.24143233]
[1753119632736,14.5,3767.1,3767.0,3.24143233]
[1753119633048,0.002,3768.1,3767.7,2.65407181]
[1753119633219,4.244,3768.0,3767.7,2.65407181]
[1753119633420,14.5,3767.9,3767.7,2.65407181]
[1753119633620,4.244,3767.8,3767.7,2.65407181]
[1753119635056,18.743,3767.8,3767.7,2.65407181]
[1753119635236,18.743,3767.8,3767.7,3.10887181]
[1753119635440,18.743,3767.8,3767.7,2.65407181]
[1753119636844,18.743,3767.8,3767.6,2.78618067]
[1753119637048,0.55,3767.6,3766.5,0.8289]
[1753119637356,6.89729163,3767.5,3767.1,0.132]
[1753119637564,6.89729163,3767.5,3766.7,2.65483298]
[1753119637565,3.6384815,3767.4,3766.7,2.65479798]
[1753119637858,0.55,3767.2,3766.7,2.78682414]
[1753119638099,4.243,3767.1,3766.7,0.132]
[1753119638267,14.5,3767.1,3766.9,2.65465867]
[1753119638429,14.5,3767.1,3767.0,2.65463233]
[1753119638623,14.5,3767.1,3766.9,2.65465867]
[1753119638624,3.20463233,3767.0,3766.9,0.132]
[1753119638862,18.743,3767.1,3766.6,2.65491257]
[1753119638863,16.739,3767.1,3766.6,2.65491257]
[1753119639039,0.55,3766.9,3766.4,1e-08]
[1753119639238,4.242,3766.8,3766.4,2.6550334]
[1753119639447,0.55,3767.0,3766.5,2.65498473]
[1753119639662,4.242,3766.9,3766.5,2.65497685]
[1753119640030,4.242,3766.9,3766.6,2.65491337]
[1753119640342,4.242,3766.9,3766.4,2.65503134]
[1753119640551,4.242,3766.9,3766.4,1e-08]
[1753119641268,0.60840869,3766.9,3766.4,1e-08]
[1753119641564,4.242,3766.8,3766.5,2.65497292]
[1753119641766,4.242,3766.8,3766.4,2.65505107]
[1753119641985,4.242,3766.7,3766.6,2.65484887]
[1753119642196,0.55,3767.0,3766.5,2.65496622]
[1753119642369,4.242,3766.9,3766.5,2.65496622]
[1753119642955,4.242,3766.9,3766.4,2.65503494]
[1753119643289,6.87075713,3766.9,3766.4,1e-08]
[1753119643489,6.87075713,3766.9,3766.4,2.65505035]
[1753119643790,6.43665713,3766.9,3766.4,1e-08]
[1753119643955,6.43665713,3766.9,3766.4,2.65503615]
[1753119644493,9.09139134,3766.9,3766.4,1e-08]
[1753119644898,3.06163393,3766.8,3766.4,1e-08]
[1753119645088,4.242,3766.7,3766.4,1e-08]
[1753119645664,4.242,3766.7,3766.4,2.65504669]
[1753119646065,14.5,3767.1,3766.9,2.65465871]
[1753119646298,14.5,3767.1,3766.6,2.65487025]
[1753119646299,4.241,3767.0,3766.6,2.65487025]
[1753119646923,0.55,3766.9,3766.4,1e-08]
[1753119647134,6.89581454,3766.8,3766.4,1e-08]
[1753119647295,4.241,3766.8,3766.4,2.65504236]
[1753119647612,4.6693,3766.8,3766.4,1e-08]
[1753119647905,4.6693,3766.8,3766.4,2.65505391]
[1753119648074,2.65498473,3766.5,3766.4,1e-08]
[1753119648279,7.44598473,3766.5,3766.4,1e-08]
[1753119648492,7.87428473,3766.5,3766.4,1e-08]
[1753119648689,15.4783,3766.5,3766.4,1e-08]
[1753119648895,18.741,3766.5,3766.4,1e-08]
[1753119649313,14.5,3766.5,3766.4,1e-08]
[1753119649476,18.741,3766.5,3766.4,1e-08]
[1753119649673,14.5,3766.5,3766.4,1e-08]
[1753119650080,14.5,3766.5,3766.4,3.09925523]
[1753119650322,18.741,3766.5,3766.4,3.88597996]
[1753119651112,3.0,3767.2,3766.9,2.65470014]
[1753119651411,4.791,3767.1,3766.4,0.57620001]
[1753119651613,14.5,3767.0,3766.7,0.132]
[1753119651826,4.241,3766.9,3766.7,0.132]
[1753119652034,4.241,3766.9,3766.7,2.78684111]
[1753119652211,4.241,3766.9,3766.7,0.132]
[1753119652617,14.5,3766.8,3766.7,0.132]
[1753119653517,18.741,3766.8,3766.7,0.132]
[1753119653919,18.741,3766.8,3766.4,1e-08]
[1753119653920,0.55,3766.7,3766.4,1e-08]
[1753119654145,4.24,3766.6,3766.4,1e-08]
[1753119655441,4.24,3766.5,3766.4,3.09924802]
[1753119655605,0.55,3767.1,3766.6,0.132]
[1753119655806,18.74,3767.0,3766.6,2.78690112]
[1753119656206,0.55,3767.1,3766.6,2.78690112]
[1753119656207,0.55,3767.1,3766.6,2.78690084]
[1753119656512,4.24,3767.0,3766.6,0.132]
[1753119656705,6.89463779,3767.0,3766.6,0.132]
[1753119656922,8.34605199,3767.0,3766.6,0.132]
[1753119657258,8.34605937,3767.0,3766.6,0.132]
[1753119657847,14.5,3766.9,3766.6,0.132]
[1753119658050,4.24,3766.8,3766.6,0.132]
[1753119658355,4.24,3766.7,3766.6,0.132]
[1753119658531,4.239,3766.7,3766.6,0.132]
[1753119658738,4.239,3766.7,3766.6,2.78690007]
[1753119659550,14.5,3767.1,3767.0,2.65463233]
[1753119659866,18.739,3767.1,3767.0,2.78663233]
[1753119660160,18.739,3767.1,3767.0,0.132]
[1753119660366,19.289,3767.1,3767.0,0.132]
[1753119660575,19.1673,3767.1,3766.5,0.132]
[1753119660792,21.15223,3767.1,3766.5,0.132]
[1753119660933,23.80680595,3767.1,3766.5,2.78692957]
[1753119661322,6.65223,3767.1,3766.5,0.132]
[1753119661551,3.0,3767.6,3767.0,2.65459536]
[1753119661786,6.369,3768.5,3767.1,0.82984561]
[1753119661787,0.4283,3768.2,3767.1,0.82984561]
[1753119662070,7.1667,3768.5,3767.9,2.65399824]
[1753119662229,4.24,3768.0,3767.8,2.65404871]
[1753119662577,4.24,3768.0,3767.1,0.8033]
[1753119662578,2.65410911,3767.8,3767.1,0.8033]
[1753119662757,0.55,3767.4,3766.4,0.80330001]
[1753119662929,6.89242208,3767.3,3766.6,2.65485553]
[1753119663145,14.5,3767.2,3766.4,0.80330001]
[1753119663447,4.238,3767.1,3767.0,2.65463233]
[1753119664673,4.238,3767.4,3767.2,2.65449139]
[1753119664872,4.238,3767.4,3767.2,0.65566867]
[1753119665031,0.9783,3767.3,3766.5,0.8033]
[1753119665230,4.238,3767.2,3766.6,2.65491424]
[1753119665629,4.238,3767.2,3766.9,2.65465437]
[1753119665947,4.238,3767.1,3766.5,0.8033]
[1753119666126,14.5,3767.4,3766.5,0.8033]
[1753119666329,4.237,3767.3,3766.6,0.39291361]
[1753119666933,0.55,3767.0,3766.4,1e-08]
[1753119667241,3.20477738,3766.8,3766.4,1e-08]
[1753119667444,0.55,3766.8,3766.4,1e-08]
[1753119667774,0.9783,3766.8,3766.4,2.6550279]
[1753119668071,0.9783,3766.8,3766.4,2.6550203]
[1753119668367,0.9783,3766.8,3766.4,1e-08]
[1753119668928,0.4283,3766.7,3766.4,1e-08]
[1753119669133,4.237,3766.6,3766.4,1e-08]
[1753119669366,4.6653,3766.6,3766.4,1e-08]
[1753119669670,0.4283,3766.5,3766.4,1e-08]
[1753119669971,5.17149453,3766.5,3766.4,1e-08]
[1753119671334,8.17149453,3766.5,3766.4,1e-08]
[1753119672184,18.95526593,3766.5,3766.4,1e-08]
[1753119673934,0.7865,3766.4,3764.7,0.1328]
[1753119674137,0.1328,3764.7,3763.8,0.3828]
[1753119674451,0.1328,3764.7,3763.8,0.25]
[1753119674452,0.55,3764.5,3763.8,0.25]
[1753119674857,4.237,3764.4,3763.8,2.906874]
[1753119675041,4.237,3764.4,3763.8,0.25]
[1753119675243,4.237,3764.4,3764.1,2.65661824]
[1753119675445,0.8237,3764.1,3763.8,0.25]
[1753119675781,4.6643,3764.3,3763.8,0.25]
[1753119675782,0.55,3764.7,3764.2,2.6565861]
[1753119676076,4.236,3764.6,3764.3,2.6564807]
[1753119676282,4.236,3764.5,3764.4,2.6564502]
[1753119676477,4.236,3764.5,3764.4,0.26564502]
[1753119676775,4.236,3764.5,3764.4,2.92211085]
[1753119677178,0.55,3764.4,3763.8,0.25]
[1753119677386,0.55,3764.2,3763.8,0.25]
[1753119677554,0.55,3764.0,3763.8,0.25]
[1753119677754,10.67921872,3763.9,3763.8,0.25]
[1753119678279,11.12631872,3763.9,3763.8,0.25]
[1753119678588,9.84780466,3763.9,3763.8,0.25]
[1753119679046,7.237,3763.9,3763.8,0.25]
[1753119679242,7.6841,3763.9,3763.8,0.25]
[1753119679440,6.10391872,3763.9,3763.8,0.25]
[1753119679658,7.6841,3763.9,3763.8,0.25]
[1753119679870,10.34091872,3763.9,3763.8,0.25]
[1753119680183,3.0,3763.8,3761.0,0.7994]
[1753119680383,2.65767064,3762.7,3761.8,2.65825079]
[1753119680570,3.0,3763.6,3761.1,2.66277556]
[1753119680571,5.4598,3762.6,3761.3,0.02658655]
[1753119680740,4.237,3762.5,3761.3,0.02658655]
[1753119680949,3.0,3762.4,3761.3,0.39402573]
[1753119681291,0.55,3762.1,3761.1,0.004]
[1753119681458,0.55,3761.9,3761.1,0.004]
[1753119681644,0.55,3761.9,3761.4,2.65853196]
[1753119681844,0.9971,3761.9,3761.3,2.6585859]
[1753119682062,8.10657095,3761.4,3760.0,0.2]
[1753119682262,0.55,3761.2,3760.8,2.65898481]
[1753119682462,0.8043,3761.3,3760.6,2.65912001]
[1753119682773,4.238,3761.2,3760.3,0.02659362]
[1753119682970,6.89675032,3761.2,3760.0,0.9785]
[1753119683189,4.788,3761.1,3760.1,0.02659503]
[1753119683361,4.788,3761.1,3760.2,0.1456595]
[1753119683362,0.55,3761.1,3760.2,0.1456595]
[1753119683562,0.55,3760.9,3760.0,0.9785]
[1753119683762,0.4471,3761.4,3760.3,2.65932225]
[1753119683994,0.4471,3761.4,3760.1,0.47809503]
[1753119683995,4.788,3761.3,3760.1,0.47809503]
[1753119684197,4.238,3761.2,3760.2,2.659433]
[1753119684400,4.238,3761.2,3760.0,0.9785]
[1753119684401,0.1328,3760.6,3760.0,0.3328]
[1753119684600,0.1328,3760.4,3760.0,0.2]
[1753119684807,4.792,3760.3,3760.0,0.2]
[1753119685009,4.242,3760.2,3760.0,0.2]
[1753119685304,4.792,3760.1,3760.0,0.2]
[1753119685798,5.2391,3760.1,3760.0,0.2]
[1753119685964,0.55,3760.1,3760.0,0.2]
[1753119686167,5.9999,3760.1,3760.0,0.2]
[1753119686393,2.57235683,3760.1,3760.0,0.2]
[1753119686700,5.00018683,3760.1,3760.0,0.2]
[1753119687272,8.10679056,3760.1,3760.0,0.2]
[1753119687471,11.10679056,3760.1,3760.0,0.2]
[1753119687693,3.75218683,3760.1,3760.0,0.2]
[1753119688005,11.10579056,3760.1,3760.0,0.2]
[1753119688213,12.49458097,3760.1,3760.0,0.2]
[1753119688588,12.29239414,3760.1,3760.0,0.2]
[1753119688790,8.04639414,3760.1,3760.0,0.2]
[1753119688990,12.29839414,3760.1,3760.0,0.2]
[1753119689391,8.04639414,3760.1,3760.0,0.2]
[1753119689597,13.31122492,3760.1,3760.0,0.2]
[1753119689787,13.31222492,3760.1,3760.0,0.2]
[1753119690196,9.05922492,3760.1,3760.0,0.2]
[1753119690401,13.31522492,3760.1,3760.0,0.2]
[1753119690612,9.05922492,3760.1,3760.0,0.2]
[1753119690799,13.31522492,3760.1,3760.0,0.2]
[1753119691212,9.05922492,3760.1,3760.0,0.2]
[1753119691372,13.31422492,3760.1,3760.0,0.2]
[1753119691979,5.40262119,3760.1,3760.0,0.2]
[1753119692309,4.46023078,3760.1,3760.0,0.2]
[1753119692508,4.46023078,3760.1,3760.0,0.201]
[1753119692677,5.01023078,3760.1,3760.0,0.201]
[1753119693030,8.01123078,3760.1,3760.0,0.201]
[1753119693226,8.01023078,3760.1,3760.0,0.201]
[1753119693380,0.20123078,3760.1,3760.0,2.81057446]
[1753119693693,6.20950373,3760.1,3760.0,0.151]
[1753119693886,11.3753908,3760.1,3760.0,0.151]
[1753119694434,12.78235747,3760.1,3760.0,0.151]
[1753119694576,10.13085374,3760.1,3760.0,0.151]
[1753119694778,0.19616667,3760.1,3760.0,2.81057446]
[1753119694973,0.36699928,3761.9,3760.0,2.81057446]
[1753119694974,4.29,3760.8,3760.0,3.26202413]
[1753119695180,0.20346533,3760.8,3760.6,0.7649]
[1753119695374,4.291,3761.0,3760.6,0.7649]
[1753119695611,2.65879267,3761.2,3760.3,2.65936228]
[1753119695815,4.29,3761.1,3760.3,2.65936228]
[1753119696117,0.55,3761.0,3760.6,2.65913025]
[1753119696289,0.55,3761.0,3760.6,2.65909404]
[1753119696493,3.20887422,3761.0,3760.3,2.65931598]
[1753119696695,0.9971,3761.0,3760.3,2.65931327]
[1753119696881,3.65599168,3761.0,3760.2,0.7649]
[1753119697082,0.2035451,3761.0,3760.0,0.6025]
[1753119697286,3.0,3761.3,3760.1,0.4515]
[1753119697634,4.288,3761.2,3760.8,2.65898517]
[1753119697782,4.288,3761.2,3760.9,2.65892286]
[1753119697982,4.48538311,3761.2,3760.8,2.65900553]
[1753119698718,4.48538311,3761.2,3760.9,2.65891843]
[1753119698885,0.19738311,3761.2,3760.6,0.814]
[1753119699083,4.285,3761.1,3760.6,3.47310232]
[1753119699307,4.285,3761.1,3760.6,3.47314416]
[1753119699524,0.1328,3761.3,3760.7,0.1328]
[1753119699708,1.14784981,3761.8,3760.8,2.6855988]
[1753119700015,4.284,3761.7,3761.6,2.65844321]
[1753119700220,4.284,3761.7,3761.5,2.65849114]
[1753119700524,4.284,3761.7,3761.6,2.65844321]
[1753119700938,4.4168,3761.8,3761.2,0.1328]
[1753119701123,4.4168,3761.8,3761.4,2.65851427]
[1753119701319,4.4168,3761.8,3761.2,0.1328]
[1753119701320,4.7301,3761.7,3761.2,0.1328]
[1753119701532,3.55,3761.6,3760.8,2.65900708]
[1753119701702,0.1328,3761.2,3760.6,0.9468]
[1753119701898,0.1328,3761.2,3760.9,2.65891787]
[1753119702098,0.1328,3761.2,3760.6,0.9468]
[1753119702321,4.283,3761.2,3760.6,3.47312381]
[1753119702521,4.283,3761.2,3760.9,2.65892799]
[1753119702831,4.283,3761.2,3761.0,2.65886524]
[1753119703134,0.1328,3761.4,3760.8,0.1328]
[1753119703335,0.20067855,3761.8,3760.8,0.14248915]
[1753119703502,3.0,3761.6,3761.4,2.65854064]
[1753119703701,4.283,3761.7,3761.6,2.65844321]
[1753119703999,0.3324619,3761.9,3761.6,2.65839869]
[1753119704202,0.7868,3762.3,3761.4,0.833]
[1753119704401,4.283,3762.2,3761.7,0.1328]
[1753119704639,4.282,3762.2,3761.7,2.79115082]
[1753119705032,4.282,3762.2,3761.7,0.1328]
[1753119705334,0.4471,3762.1,3761.7,0.1328]
[1753119705536,4.282,3762.2,3761.4,0.833]
[1753119705537,0.803,3761.9,3761.4,0.1328]
[1753119705736,0.1328,3761.7,3761.0,0.1328]
[1753119705915,0.1328,3761.7,3761.0,2.79166405]
[1753119706241,0.1328,3761.7,3761.0,0.1328]
[1753119706444,0.1328,3762.1,3761.5,0.1328]
[1753119706740,4.279,3762.0,3761.5,2.79129403]
[1753119706928,4.279,3762.0,3761.6,2.6584321]
[1753119707317,0.1328,3762.1,3761.5,0.1328]
[1753119707519,4.279,3762.0,3761.6,2.65844294]
[1753119707841,0.1328,3762.1,3761.6,2.65843668]
[1753119708141,0.1328,3762.1,3761.6,2.65840005]
[1753119708441,4.4088,3762.1,3761.5,0.1328]
[1753119708830,4.4088,3762.1,3761.8,2.65829658]
[1753119709028,4.4078,3762.1,3761.9,2.6581739]
[1753119709236,0.33421612,3762.3,3761.7,0.1328]
[1753119709547,0.33421612,3762.3,3761.9,2.65822644]
[1753119709717,0.33421612,3762.3,3762.1,2.65807369]
[1753119709921,0.20141612,3762.3,3762.2,2.65801924]
[1753119710119,4.273,3762.4,3762.3,2.65794859]
[1753119710329,0.1328,3762.8,3762.2,0.1328]
[1753119710529,0.70080086,3763.2,3762.8,2.6575954]
[1753119710530,0.19924396,3762.9,3762.8,2.6575954]
[1753119710729,0.1328,3763.2,3762.6,0.1328]
[1753119710917,2.65744179,3763.1,3762.6,0.1328]
[1753119711134,0.4367,3763.0,3761.9,1.2427]
[1753119711451,2.65773667,3762.6,3761.9,0.784]
[1753119711615,0.1328,3762.4,3761.9,0.784]
[1753119712130,2.7906848,3762.4,3761.8,0.1328]
[1753119712331,2.65801924,3762.2,3761.8,0.1328]
[1753119712548,2.65860259,3761.4,3761.1,0.1328]
[1753119712710,2.791386,3761.4,3760.8,0.1328]
[1753119712914,3.228086,3761.4,3760.8,0.1328]
[1753119713117,2.65879784,3761.1,3760.8,0.1328]
[1753119713722,2.65893802,3760.9,3760.8,0.1328]
[1753119713926,2.65893802,3760.9,3758.0,3.16095714]
[1753119713927,2.65922084,3760.5,3760.4,0.1328]
[1753119714253,4.80077789,3760.9,3760.1,0.784]
[1753119714254,0.1328,3760.7,3760.1,0.1328]
[1753119714422,2.65937521,3760.3,3760.1,0.1328]
[1753119714858,4.269,3760.5,3760.1,0.1328]
[1753119716556,0.201751,3760.7,3760.4,0.1328]
[1753119716758,4.268,3760.8,3760.4,0.1328]
[1753119717054,4.269,3760.8,3760.4,0.1328]
[1753119717262,2.65907942,3760.7,3760.0,2.81056989]
[1753119717557,2.65923368,3760.5,3760.2,0.1328]
[1753119717760,2.65917417,3760.6,3760.2,0.1328]
[1753119718053,4.269,3760.7,3760.0,0.151]
[1753119718227,2.79196306,3760.6,3760.0,0.2838]
[1753119718427,2.65923171,3760.5,3760.0,0.2838]
[1753119718658,0.1328,3760.6,3760.0,2.94332214]
[1753119718833,0.1328,3760.6,3760.0,2.94335733]
[1753119719149,0.1328,3760.6,3760.0,0.2838]
[1753119719328,2.65927574,3760.5,3760.0,0.2838]
[1753119719541,3.09597574,3760.5,3760.0,0.2838]
[1753119720057,0.63668162,3760.6,3760.0,0.2838]
[1753119720359,4.265,3760.5,3760.0,0.2838]
[1753119720558,4.265,3760.5,3760.2,0.1328]
[1753119721671,2.65940898,3760.3,3760.0,0.151]
[1753119721841,0.1328,3760.3,3760.0,0.151]
[1753119722040,2.65930382,3760.4,3760.0,0.2838]
[1753119722271,4.261,3760.3,3760.0,0.2838]
[1753119722476,0.4367,3760.3,3760.0,0.151]
[1753119722650,4.8315,3760.2,3760.0,0.151]
[1753119722846,0.1328,3760.2,3760.0,0.151]